[Event "Norwegian Team Championship 2019"]
[Site "Drammen"]
[Date "2019.06.02"]
[Round "5.10"]
[White "Mihajlov, Sebastian"]
[Black "Fossum, Oystein Boyum"]
[Result "1-0"]
[ECO "B38"]
[WhiteElo "2371"]
[BlackElo "2258"]
[Annotator "ChessBase"]
[PlyCount "73"]
[EventDate "2019.05.30"]
[EventType "swiss"]
[EventCountry "NOR"]
[SourceTitle "playchess.com"]
[Source "ChessBase"]
[SourceQuality "1"]
[TimeControl "40/5400:1800"]

1. e4 {[%emt 0:03:32]} c5 {[%emt 0:00:57]} 2. Nf3 {[%emt 0:00:03]} g6 {[%emt 0:00:18]} 3. d4 {[%emt 0:00:04]} cxd4 {[%emt 0:00:07]} 4. Nxd4 {[%emt 0:00:03]} Bg7 {[%emt 0:00:10]} 5. c4 {[%emt 0:00:03]} Nc6 {[%emt 0:00:51]} 6. Be3 {[%emt 0:00:07]} Nf6 {[%emt 0:00:08]} 7. Nc3 {[%emt 0:00:04]} O-O {[%emt 0:00:15]} 8. Be2 {[%emt 0:00:08]} d6 {[%emt 0:00:39]} 9. f3 {[%emt 0:00:04]} Nxd4 {[%emt 0:07:58]} 10. Bxd4 {[%emt 0:00:06]} Be6 {[%emt 0:06:46]} 11. O-O {[%emt 0:00:06]} Qa5 {[%emt 0:02:04]} 12. Kh1 {[%emt 0:02:05]} Rfc8 {[%emt 0:01:58]} 13. b3 {[%emt 0:00:09]} a6 {[%emt 0:04:40]} 14. f4 {[%emt 0:09:17]} b5 {[%emt 0:10:33]} 15. f5 {[%emt 0:00:50]} Bd7 {[%emt 0:04:49]} 16. Bxf6 {[%emt 0:00:04]} Bxf6 {[%emt 0:04:15]} 17. Nd5 {[%emt 0:00:04]} Qd8 {[%emt 0:11:52]} 18. Nxf6+ {[%emt 0:00:18]} exf6 {[%emt 0:00:06]} 19. fxg6 {[%emt 0:03:41]} hxg6 {[%emt 0:00:22]} 20. Qxd6 {[%emt 0:00:00]} Rc6 {[%emt 0:04:34]} 21. Qf4 {[%emt 0:00:05]} Qb8 {[%emt 0:02:25]} 22. e5 {[%emt 0:02:15]} Re6 {[%emt 0:06:02]} 23. Bg4 {[%emt 0:01:35]} f5 {[%emt 0:01:48]} 24. Bf3 {[%emt 0:00:04]} Bc6 {[%emt 0:00:35]} 25. Bxc6 {[%emt 0:00:53]} Rxc6 {[%emt 0:00:03]} 26. Rac1 {[%emt 0:00:54]} Re6 {[%emt 0:01:35]} 27. Rfe1 {[%emt 0:01:00]} bxc4 {[%emt 0:00:54]} 28. Rxc4 {[%emt 0:00:20]} Qb5 {[%emt 0:00:43]} 29. Rc3 {[%emt 0:05:26]} Qa5 {[%emt 0:01:33]} 30. Rce3 {[%emt 0:00:15]} Qxa2 {[%emt 0:01:08]} 31. Rh3 {[%emt 0:01:04]} g5 {[%emt 0:02:59]} 32. Qxf5 {[%emt 0:00:17]} Qd2 {[%emt 0:00:29]} 33. Rf1 {[%emt 0:00:08]} Ra7 {[%emt 0:00:52]} 34. Qh7+ {[%emt 0:00:34]} Kf8 {[%emt 0:00:02]} 35. Qh8+ {[%emt 0:00:15]} Ke7 {[%emt 0:00:03]} 36. Rh7 {[%emt 0:00:50]} Kd7 {[%emt 0:00:22]} 37. Rhxf7+ {[%emt 0:00:05]} 1-0

[Event "Norwegian Team Championship 2019"]
[Site "Drammen"]
[Date "2019.06.02"]
[Round "5.11"]
[White "Stenersen, Gudmund"]
[Black "Mihajlov, Svetoslav"]
[Result "1/2-1/2"]
[ECO "B41"]
[WhiteElo "2183"]
[BlackElo "2161"]
[Annotator "ChessBase"]
[PlyCount "103"]
[EventDate "2019.05.30"]
[EventType "swiss"]
[EventCountry "NOR"]
[SourceTitle "playchess.com"]
[Source "ChessBase"]
[SourceQuality "1"]
[TimeControl "40/5400:1800"]

1. e4 {[%emt 0:00:02]} c5 {[%emt 0:00:32]} 2. Nf3 {[%emt 0:00:06]} e6 {[%emt 0:00:10]} 3. c4 {[%emt 0:00:29]} Nc6 {[%emt 0:01:54]} 4. Nc3 {[%emt 0:01:31]} a6 {[%emt 0:00:26]} 5. d4 {[%emt 0:00:40]} cxd4 {[%emt 0:00:08]} 6. Nxd4 {[%emt 0:00:06]} Qc7 {[%emt 0:00:18]} 7. Be3 {[%emt 0:00:42]} Nf6 {[%emt 0:01:27]} 8. Rc1 {[%emt 0:00:43]} Ne5 {[%emt 0:05:20]} 9. f3 {[%emt 0:05:55]} d6 {[%emt 0:05:43]} 10. Be2 {[%emt 0:01:16]} Be7 {[%emt 0:01:33]} 11. O-O {[%emt 0:02:16]} O-O {[%emt 0:05:07]} 12. Qd2 {[%emt 0:02:16]} b6 {[%emt 0:02:39]} 13. Rfd1 {[%emt 0:04:46]} Re8 {[%emt 0:01:21]} 14. Bf1 {[%emt 0:02:15]} Rb8 {[%emt 0:00:10]} 15. b3 {[%emt 0:00:40]} Bf8 {[%emt 0:00:22]} 16. Qf2 {[%emt 0:02:20]} Ned7 {[%emt 0:03:51]} 17. Kh1 {[%emt 0:03:19]} Bb7 {[%emt 0:00:07]} 18. Qh4 {[%emt 0:02:01]} Rbc8 {[%emt 0:01:06]} 19. g4 {[%emt 0:02:20]} h6 {[%emt 0:08:10]} 20. g5 {[%emt 0:03:05]} hxg5 {[%emt 0:00:06]} 21. Bxg5 {[%emt 0:00:09]} Nh7 {[%emt 0:00:11]} 22. Be3 {[%emt 0:01:35]} Qb8 {[%emt 0:12:53]} 23. Bh3 {[%emt 0:05:29]} Be7 {[%emt 0:20:37]} 24. Qg3 {[%emt 0:02:15]} Ndf8 {[%emt 0:01:40]} 25. Rg1 {[%emt 0:01:26]} Bf6 {[%emt 0:00:22]} 26. Nde2 {[%emt 0:05:24]} d5 {[%emt 0:04:25]} 27. exd5 {[%emt 0:03:02]} Qxg3 {[%emt 0:00:06]} 28. Rxg3 {[%emt 0:09:44]} b5 {[%emt 0:01:34]} 29. dxe6 {[%emt 0:04:02]} Nxe6 {[%emt 0:01:06]} 30. Ne4 {[%emt 0:01:23]} Be5 {[%emt 0:00:17]} 31. Rgg1 {[%emt 0:00:42]} Rcd8 {[%emt 0:01:08]} 32. Rgd1 {[%emt 0:02:56]} Bc6 {[%emt 0:00:50]} 33. Kg2 {[%emt 0:02:19]} Nhf8 {[%emt 0:00:30]} 34. Bb6 {[%emt 0:02:16]} Rb8 {[%emt 0:00:03]} 35. Ba7 {[%emt 0:00:35]} Ra8 {[%emt 0:00:12]} 36. Bf2 {[%emt 0:00:25]} g6 {[%emt 0:00:06]} 37. Bg3 {[%emt 0:00:21]} Bb2 {[%emt 0:00:10]} 38. Rc2 {[%emt 0:00:23]} Bg7 {[%emt 0:00:01]} 39. cxb5 {[%emt 0:02:07]} Bxb5 {[%emt 0:00:05]} 40. N2c3 {[%emt 0:00:53]} Nd4 {[%emt 0:01:03]} 41. Rcd2 {[%emt 0:30:59]} Nfe6 {[%emt 0:30:19]} 42. Nd5 {[%emt 0:04:30]} Red8 {[%emt 0:00:00]} 43. Ndf6+ {[%emt 0:00:00]} Kh8 {[%emt 0:00:00]} 44. Kf2 {[%emt 0:00:00]} Bh6 {[%emt 0:00:00]} 45. Be5 {[%emt 0:00:00]} Bxd2 {[%emt 0:00:00]} 46. Ng4+ {[%emt 0:00:00]} Kg8 {[%emt 0:00:00]} 47. Nef6+ {[%emt 0:00:00]} Kf8 {[%emt 0:00:00]} 48. Rxd2 {[%emt 0:00:00]} Nf5 {[%emt 0:00:00]} 49. Nh7+ {[%emt 0:00:00]} Ke8 {[%emt 0:00:00]} 50. Nhf6+ {[%emt 0:00:00]} Kf8 {[%emt 0:00:00]} 51. Nh7+ {[%emt 0:00:00]} Ke8 {[%emt 0:00:00]} 52. Nhf6+ {[%emt 0:00:00]} 1/2-1/2

[Event "Norwegian Team Championship 2019"]
[Site "Drammen"]
[Date "2019.06.02"]
[Round "5.12"]
[White "Dale, Gunnar Brandshaug"]
[Black "Abrahamsson, Roaul"]
[Result "1-0"]
[ECO "B01"]
[WhiteElo "2003"]
[BlackElo "1980"]
[Annotator "NA"]
[PlyCount "87"]
[EventDate "2019.05.30"]
[EventType "swiss"]
[EventCountry "NOR"]
[SourceTitle "playchess.com"]
[Source "ChessBase"]
[SourceQuality "1"]
[TimeControl "40/5400:1800"]

{[%evp 8,83,55,43,19,11,65,24,33,43,90,114,32767,32767,41,-21,16,32767,32767,32767,44,32767,32767,32767,48,46,44,32767,45,20,31,37,32767,185,32767,32767,293,327,806,285,291,136,404,32767,32767,1470,1427,32767,32767,32767,29990,32767,289,379,32767,32767,32767,32767,32767,339,32767,32767,32767,699,495,32767,32767,32767,32767,844,786,1170,1131,32767,1081,32767,32767,1660]} 1. e4 {[%emt 0:00:11]} d5 {[%emt 0:00:50]} 2. exd5 {[%emt 0:00:23]} Qxd5 {[%emt 0:00:06]} 3. Nc3 {[%emt 0:00:27]} Qa5 {[%emt 0:00:10]} 4. Bc4 {[%emt 0:00:06]} Nf6 {[%emt 0:00:29]} 5. d3 {[%emt 0:00:07]} c6 {[%emt 0:01:29]} 6. Bd2 {[%emt 0:00:10]} Bf5 {[%emt 0:00:32] B01: Scandinavian Defence} (6... Qc7 7. Qe2 Bf5 8. h3 h5 9. Nf3 Nbd7 10. O-O Nb6 11. Bb3 Nbd5 12. Nxd5 Nxd5 13. Nd4 Bd7 14. Bxd5 cxd5 15. c4 dxc4 16. dxc4 {½-½ (48) Efimenko,Z (2651)-Kryvoruchko,Y (2659) Kiev 2013}) 7. Qe2 {[%emt 0:00:41]} (7. Nd5 $5 Qd8 8. Nxf6+ gxf6 9. Qe2 $14) 7... e6 {[%emt 0:00:36]} 8. h3 {[%emt 0:00:56]} Be7 {[%emt 0:05:30]} ({Black should play} 8... Bb4 $14) 9. g4 {[%emt 0:01:04]} Bg6 {[%emt 0:00:08]} 10. O-O-O {[%emt 0:02:10]} Qc7 {[%emt 0:01:12]} 11. f4 {[%emt 0:01:07]} (11. h4 $14 h5 12. g5) 11... b5 {[%emt 0:03:25]} 12. Bb3 {[%emt 0:00:46]} a5 {[%emt 0:00:13]} 13. a4 {[%emt 0:02:39]} b4 {[%emt 0:07:07]} (13... Nbd7 $11) 14. Ne4 {[%emt 0:00:50]} Bxe4 $146 {[%emt 0:01:41]} ({Predecessor:} 14... Nbd7 15. Nxf6+ Nxf6 {0-1 (56) Hoolt,S (2318)-Batsiashvili,N (2435) Tromsoe 2014}) 15. dxe4 {[%emt 0:00:21]} Na6 {[%emt 0:01:58]} 16. g5 {[%emt 0:06:16]} Nd7 {[%emt 0:00:19]} 17. Nf3 {[%emt 0:07:14]} Nac5 {[%emt 0:00:54]} 18. f5 {[%emt 0:01:25]} Nxb3+ {[%emt 0:02:23]} 19. cxb3 {[%emt 0:00:15]} e5 {[%emt 0:04:25]} 20. Kb1 {[%emt 0:01:49]} Nc5 {[%emt 0:04:27]} 21. Qc4 {[%emt 0:00:58]} Nd7 {[%emt 0:03:44]} 22. Be3 {[%emt 0:01:26]} c5 $2 {[%emt 0:07:55] [#]} (22... f6 23. gxf6 gxf6) 23. Rh2 $2 {[%emt 0:01:52]} (23. Rxd7 $1 {[%mdl 512]} Kxd7 (23... Qxd7 24. Nxe5) 24. Qd5+ {[%mdl 64] Double Attack} Kc8 25. Qxa8+ Qb8 26. Qxa5) 23... O-O {[%emt 0:00:43] [#]} 24. g6 $2 {[%emt 0:05:28]} (24. f6 $1 $18 {[%mdl 512]} gxf6 25. gxf6 Bxf6 26. Bh6) 24... Bf6 $2 {[%emt 0:15:21]} (24... hxg6 $16 {was called for.} 25. fxg6 Nb6 26. gxf7+ Rxf7) 25. Rhd2 {[%emt 0:02:02]} Rad8 {[%emt 0:07:09]} 26. gxf7+ {[%emt 0:00:51]} Kh8 {[%emt 0:02:03]} 27. Ng5 {[%emt 0:04:06]} Bxg5 {[%emt 0:02:48]} 28. Bxg5 {[%emt 0:00:06]} Nf6 {[%emt 0:00:14]} 29. Qe6 {[%emt 0:00:19]} Rxd2 {[%emt 0:01:28]} 30. Rxd2 {[%emt 0:00:16]} Qxf7 {[%emt 0:05:15]} 31. Qxf7 {[%emt 0:02:26]} Rxf7 {[%emt 0:00:02]} 32. Rd8+ {[%emt 0:00:01]} Ng8 {[%emt 0:00:03]} 33. Re8 {[%emt 0:02:34]} h6 {[%emt 0:00:21]} 34. Be3 {[%emt 0:00:44]} Re7 {[%emt 0:02:55]} 35. Rxe7 {[%emt 0:00:30]} Nxe7 {[%emt 0:00:01]} 36. Bxc5 {[%emt 0:00:01]} Nc6 {[%emt 0:00:52]} 37. Kc2 {[%emt 0:00:25]} g6 {[%emt 0:00:41]} 38. Kd3 {[%emt 0:01:24]} Kg7 {[%emt 0:00:10]} 39. fxg6 {[%emt 0:00:41]} Kxg6 {[%emt 0:00:02]} 40. Kc4 {[%emt 0:00:20]} Kg5 {[%emt 0:00:05]} 41. Kd5 {[%emt 0:30:25]} Nb8 {[%emt 0:01:50]} 42. Kd6 $18 {[%emt 0:00:00]} Kf4 {[%emt 0:00:32]} 43. Ba7 {[%emt 0:00:00]} Kxe4 {[%emt 0:00:25]} 44. Bxb8 {[%emt 0:00:00]} 1-0

[Event "Norwegian Team Championship 2019"]
[Site "Drammen"]
[Date "2019.06.02"]
[Round "5.13"]
[White "Gamback, Bjorn"]
[Black "Hansen, Pal Andreas"]
[Result "1/2-1/2"]
[ECO "A15"]
[WhiteElo "2157"]
[BlackElo "2118"]
[Annotator "ChessBase"]
[PlyCount "41"]
[EventDate "2019.05.30"]
[EventType "swiss"]
[EventCountry "NOR"]
[SourceTitle "playchess.com"]
[Source "ChessBase"]
[SourceQuality "1"]
[TimeControl "40/5400:1800"]

1. Nf3 {[%emt 0:00:03]} Nf6 {[%emt 0:00:47]} 2. c4 {[%emt 0:00:07]} g6 {[%emt 0:00:07]} 3. b4 {[%emt 0:00:10]} Bg7 {[%emt 0:01:02]} 4. Bb2 {[%emt 0:00:05]} O-O {[%emt 0:01:13]} 5. e3 {[%emt 0:00:09]} d6 {[%emt 0:00:27]} 6. Be2 {[%emt 0:00:20]} e5 {[%emt 0:03:39]} 7. d3 {[%emt 0:00:48]} Re8 {[%emt 0:05:16]} 8. Nbd2 {[%emt 0:00:34]} h6 {[%emt 0:15:29]} 9. Qc2 {[%emt 0:01:37]} a5 {[%emt 0:05:13]} 10. a3 {[%emt 0:01:19]} Bf5 {[%emt 0:02:00]} 11. O-O {[%emt 0:05:48]} e4 {[%emt 0:12:45]} 12. dxe4 {[%emt 0:02:31]} Nxe4 {[%emt 0:00:53]} 13. Nxe4 {[%emt 0:00:41]} Bxe4 {[%emt 0:00:56]} 14. Qd2 {[%emt 0:00:25]} Bxb2 {[%emt 0:02:11]} 15. Qxb2 {[%emt 0:00:09]} Nc6 {[%emt 0:02:22]} 16. Rfd1 {[%emt 0:05:16]} Ne5 {[%emt 0:04:52]} 17. Nxe5 {[%emt 0:18:21]} Rxe5 {[%emt 0:00:06]} 18. f3 {[%emt 0:01:14]} Bc6 {[%emt 0:01:33]} 19. Qxe5 {[%emt 0:01:28]} dxe5 {[%emt 0:00:07]} 20. Rxd8+ {[%emt 0:00:03]} Rxd8 {[%emt 0:00:07]} 21. Rd1 {[%emt 0:00:15]} 1/2-1/2

[Event "Norwegian Team Championship 2019"]
[Site "Drammen"]
[Date "2019.06.02"]
[Round "5.14"]
[White "Hagen, Brede Andre Larsen"]
[Black "Laverton, Christian"]
[Result "1/2-1/2"]
[ECO "B49"]
[WhiteElo "2041"]
[BlackElo "2115"]
[Annotator "ChessBase"]
[PlyCount "80"]
[EventDate "2019.05.30"]
[EventType "swiss"]
[EventCountry "NOR"]
[SourceTitle "playchess.com"]
[Source "ChessBase"]
[SourceQuality "1"]
[TimeControl "40/5400:1800"]

1. e4 {[%emt 0:02:43]} c5 {[%emt 0:00:23]} 2. Nf3 {[%emt 0:00:12]} e6 {[%emt 0:00:14]} 3. d4 {[%emt 0:00:14]} cxd4 {[%emt 0:00:08]} 4. Nxd4 {[%emt 0:00:08]} Nc6 {[%emt 0:00:29]} 5. Nc3 {[%emt 0:01:01]} Qc7 {[%emt 0:00:33]} 6. Be3 {[%emt 0:02:32]} a6 {[%emt 0:00:38]} 7. Be2 {[%emt 0:01:12]} Nf6 {[%emt 0:00:55]} 8. O-O {[%emt 0:01:28]} Bb4 {[%emt 0:00:45]} 9. Na4 {[%emt 0:00:59]} Be7 {[%emt 0:00:20]} 10. Nxc6 {[%emt 0:02:05]} bxc6 {[%emt 0:00:15]} 11. Nb6 {[%emt 0:00:12]} Rb8 {[%emt 0:00:21]} 12. Nxc8 {[%emt 0:00:10]} Qxc8 {[%emt 0:00:29]} 13. Bd4 {[%emt 0:02:28]} c5 {[%emt 0:04:37]} 14. Be5 {[%emt 0:01:40]} Rb6 {[%emt 0:00:34]} 15. b3 {[%emt 0:06:43]} d6 {[%emt 0:07:05]} 16. Bb2 {[%emt 0:04:11]} O-O {[%emt 0:03:32]} 17. Qd3 {[%emt 0:06:40]} Rd8 {[%emt 0:09:31]} 18. Qe3 {[%emt 0:22:29]} d5 {[%emt 0:29:26]} 19. e5 {[%emt 0:07:56]} d4 {[%emt 0:05:11]} 20. Qg3 {[%emt 0:06:52]} Nd5 {[%emt 0:02:59]} 21. Bc4 {[%emt 0:01:56]} Nb4 {[%emt 0:07:23]} 22. c3 {[%emt 0:02:35]} dxc3 {[%emt 0:00:59]} 23. Bxc3 {[%emt 0:00:50]} Rb8 {[%emt 0:03:21]} 24. f4 {[%emt 0:01:14]} Nd5 {[%emt 0:02:14]} 25. Ba5 {[%emt 0:00:20]} Rd7 {[%emt 0:00:44]} 26. Rad1 {[%emt 0:01:24]} Qc6 {[%emt 0:00:47]} 27. Qf3 {[%emt 0:00:58]} Bd8 {[%emt 0:01:25]} 28. Bc3 {[%emt 0:00:08]} Bc7 {[%emt 0:00:50]} 29. f5 {[%emt 0:00:27]} Rbd8 {[%emt 0:00:51]} 30. f6 {[%emt 0:01:29]} g6 {[%emt 0:01:06]} 31. Bxd5 {[%emt 0:05:05]} Rxd5 {[%emt 0:00:03]} 32. Rxd5 {[%emt 0:00:03]} Rxd5 {[%emt 0:00:19]} 33. Qf4 {[%emt 0:00:05]} Qe8 {[%emt 0:00:14]} 34. Qc4 {[%emt 0:00:02]} Bxe5 {[%emt 0:00:08]} 35. Bxe5 {[%emt 0:00:07]} Rxe5 {[%emt 0:00:02]} 36. Qxa6 {[%emt 0:00:01]} Rd5 {[%emt 0:00:11]} 37. a4 {[%emt 0:00:15]} Qd8 {[%emt 0:00:05]} 38. h3 {[%emt 0:00:25]} e5 {[%emt 0:00:04]} 39. a5 {[%emt 0:00:20]} Rd6 {[%emt 0:00:05]} 40. Qb5 {[%emt 0:00:15]} Rxf6 {[%emt 0:00:13]} 1/2-1/2

[Event "Norwegian Team Championship 2019"]
[Site "Drammen"]
[Date "2019.06.02"]
[Round "5.15"]
[White "Bruaset, Eivind"]
[Black "Lund, Terje"]
[Result "0-1"]
[ECO "B14"]
[WhiteElo "2076"]
[BlackElo "2055"]
[Annotator "NA"]
[PlyCount "130"]
[EventDate "2019.05.30"]
[EventType "swiss"]
[EventCountry "NOR"]
[SourceTitle "playchess.com"]
[Source "ChessBase"]
[SourceQuality "1"]
[TimeControl "40/5400:1800"]

1. e4 {[%emt 0:26:10]} c6 {[%emt 0:00:10]} 2. d4 {[%emt 0:00:04]} d5 {[%emt 0:00:04]} 3. exd5 {[%emt 0:00:05]} cxd5 {[%emt 0:00:04]} 4. c4 {[%emt 0:00:05]} Nf6 {[%emt 0:00:06]} 5. Nc3 {[%emt 0:00:02]} e6 {[%emt 0:00:05]} 6. c5 {[%emt 0:00:05]} Be7 {[%emt 0:00:06]} 7. Nf3 {[%emt 0:00:05]} O-O {[%emt 0:00:29]} 8. Qc2 {[%emt 0:00:05] B14: Caro-Kann: Panov-Botvinnik Attack with 5...e6 and 5...g6} (8. Bf4 Nc6 9. Bb5 Bd7 10. O-O Ne4 11. Rc1 a6 12. Bxc6 Bxc6 13. Ne5 Be8 14. Re1 Nxc3 15. Rxc3 f6 16. Nd3 Bf7 17. h3 Qd7 18. Rb3 Rfe8 19. Bg3 {1-0 (52) Zhigalko,A (2545)-Mchedlishvili,M (2610) St Petersburg 2018}) 8... Nc6 {[%emt 0:12:12]} 9. Bb5 {[%emt 0:00:49]} Qc7 {[%emt 0:13:14]} 10. O-O {[%emt 0:02:47]} Bd7 {[%emt 0:08:22]} 11. Bxc6 {[%emt 0:01:07]} bxc6 {[%emt 0:01:28]} 12. Bd2 $146 {[%emt 0:05:03]} ({Predecessor:} 12. Ne5 Rae8 13. Bf4 Nh5 14. Be3 g6 15. Bh6 Ng7 16. Bf4 Nh5 17. Bh6 Ng7 18. Bf4 Nh5 19. Bh6 Ng7 20. Bf4 {½-½ (20) Konstantinov,A (1855)-Nikolovski,N (1874) Skopje 2011}) 12... Rfb8 {[%emt 0:01:43]} 13. Rfb1 {[%emt 0:00:44]} Be8 {[%emt 0:00:24]} 14. Qc1 {[%emt 0:01:23]} Rb7 {[%emt 0:01:50]} 15. b4 {[%emt 0:03:26]} Ne4 {[%emt 0:03:30]} 16. Nxe4 {[%emt 0:01:27]} dxe4 {[%emt 0:00:01]} 17. Ne5 {[%emt 0:00:40]} Rd8 {[%emt 0:03:17]} 18. Qc3 {[%emt 0:08:04]} f6 {[%emt 0:03:56]} 19. Nc4 {[%emt 0:00:40]} Rd5 {[%emt 0:01:52]} 20. Re1 {[%emt 0:03:09]} Bg6 {[%emt 0:00:53]} 21. Be3 {[%emt 0:03:20]} Qd7 {[%emt 0:03:04]} 22. Red1 {[%emt 0:04:31]} e5 {[%emt 0:02:56]} 23. Rd2 {[%emt 0:00:20]} exd4 {[%emt 0:01:51]} 24. Bxd4 {[%emt 0:00:11]} Qe6 {[%emt 0:01:01]} 25. a4 {[%emt 0:06:17]} Rbd7 {[%emt 0:05:07]} (25... f5 $15) 26. Ne3 {[%emt 0:01:07]} Rh5 {[%emt 0:01:40]} 27. Rad1 {[%emt 0:02:15]} Bf7 {[%emt 0:01:14]} 28. b5 {[%emt 0:02:00]} f5 {[%emt 0:04:58]} 29. Be5 {[%emt 0:03:39]} Rxd2 {[%emt 0:02:19]} 30. Rxd2 {[%emt 0:00:01]} f4 {[%emt 0:02:38]} 31. Bxf4 {[%emt 0:00:10]} Rxc5 {[%emt 0:00:36]} 32. Rd8+ {[%emt 0:02:03]} Bxd8 {[%emt 0:00:06]} 33. Qxc5 {[%emt 0:00:01]} cxb5 {[%emt 0:00:43]} 34. axb5 {[%emt 0:00:19]} Bb6 {[%emt 0:01:40]} 35. Qc6 {[%emt 0:02:26]} h6 {[%emt 0:00:20]} 36. Qc3 {[%emt 0:01:33]} Qb3 {[%emt 0:02:05]} 37. Qc8+ {[%emt 0:02:35]} Kh7 {[%emt 0:00:05]} 38. Qf8 {[%emt 0:00:06]} Bxe3 {[%emt 0:02:01]} 39. fxe3 {[%emt 0:00:02]} g5 {[%emt 0:00:11]} 40. Qe7 {[%emt 0:00:58]} Qd1+ $2 {[%emt 0:01:07]} (40... gxf4 $19 41. Qxe4+ Kg8 42. Qxf4 Qxb5 43. Qxh6 Qe5) 41. Kf2 {[%emt 0:00:08]} Qd2+ {[%emt 0:00:15]} 42. Kf1 {[%emt 0:00:08]} Qc1+ {[%emt 0:02:35]} 43. Kf2 {[%emt 0:00:56]} Qc2+ {[%emt 0:00:13]} 44. Kg3 {[%emt 0:04:41]} gxf4+ {[%emt 0:00:06]} 45. Kxf4 {[%emt 0:00:04]} Qf2+ {[%emt 0:03:23]} 46. Ke5 {[%emt 0:00:11]} Qb2+ {[%emt 0:01:18]} 47. Kf4 {[%emt 0:00:14]} Kg8 {[%emt 0:02:40]} 48. Qxa7 {[%emt 0:05:30]} Qxb5 {[%emt 0:00:22]} 49. Qa8+ {[%emt 0:00:50]} Kg7 {[%emt 0:00:20]} 50. Qa1+ {[%emt 0:02:25]} Kg6 {[%emt 0:01:28]} 51. h4 {[%emt 0:00:23]} Qf5+ {[%emt 0:00:56]} 52. Kg3 $19 {[%emt 0:00:01]} Be6 {[%emt 0:00:34]} 53. Kh2 {[%emt 0:00:39]} Qf2 {[%emt 0:01:11]} 54. Qe5 {[%emt 0:00:16]} Qxh4+ {[%emt 0:00:17]} 55. Kg1 {[%emt 0:00:01]} Qg4 {[%emt 0:00:59]} 56. Qb8 {[%emt 0:00:06]} Qg5 {[%emt 0:01:14]} 57. Qe8+ {[%emt 0:00:12]} Kf5 {[%emt 0:00:58]} 58. Qb5+ {[%emt 0:00:41]} Kg4 {[%emt 0:00:43]} 59. Qe2+ {[%emt 0:00:14]} Kh4 {[%emt 0:00:43]} 60. Kh1 {[%emt 0:01:28]} Qg3 {[%emt 0:02:53]} 61. Qb2 {[%emt 0:00:01]} Qxe3 {[%emt 0:02:55]} 62. Qf6+ {[%emt 0:00:06]} Kg3 {[%emt 0:00:23]} 63. Qg6+ {[%emt 0:01:44]} Bg4 {[%emt 0:00:08]} 64. Qd6+ {[%emt 0:00:02]} Qf4 {[%emt 0:00:10]} 65. Qa6 {[%emt 0:00:24]} Qe3 {[%emt 0:00:21]} 0-1